Cogmind - Beta 13 X1 @@@ ROGUE MODE // 2023.08.01 @ 02:12:46 Player: Luna Result: Destroyed by S-10 Pest with Light Assault Rifle Performance ------------- Evolutions (0) 0 Regions Visited (2) 400 Robots Destroyed (25) 125 Value Destroyed (588) 588 Prototype IDs (10) 200 Alien Tech Used (0) 0 Bonus (0) 0 TOTAL SCORE: 1313 Bonus ------- None Cogmind --------- Core Integrity 0/250 Matter 22/300 Energy 179/180 System Corruption 4% Temperature Cool (0) Movement Core (650) Ox12 Location -10/Subcaves Parts ------- > --- POWER (1) -------- Meta Core > --- PROPULSION (2+1) - (None) > --- UTILITY (2+1) ---- Large Storage Unit Subdweller Optics (+) > --- WEAPON (2) ------- Shotgun Subdweller Shrapnel Launcher > --- INVENTORY (15) --- Ion Engine Light Treads Disposable Heat Sink Large Matter Pod (0) Assault Rifle Shotgun Peak State ------------ > --- POWER ------------ Meta Core > --- PROPULSION ------- Light Treads Compact Wheel > --- UTILITY ---------- Subdweller Optics Scrap Shield > --- WEAPON ----------- Shotgun Shotgun Shotgun > --- INVENTORY -------- Ion Engine Light Treads Subdweller Shrapnel Launcher [Rating: 27] Favorites ----------- Power Ion Engine Engine Ion Engine Power Core Meta Core Propulsion Compact Wheel Treads Light Treads Wheel Compact Wheel Utility Large Storage Unit Device Subdweller Optics Storage Large Storage Unit Processor Improved Targeting Computer Protection Scrap Shield Weapon Assault Rifle Ballistic Gun Assault Rifle Launcher Subdweller Shrapnel Launcher Build | -11 -10 -10 ------- Run | Jun Mat Sub Slots Evolved . | . . . Power . | . . . Propulsion . | . . . Utility . | . . . Weapon . | . . . Parts Attached 25 | 6 10 9 Power 3 | 1 1 1 Engine 2 | 1 1 . Core 1 | . . 1 Reactor . | . . . Propulsion 6 | 2 4 . Treads 3 | . 3 . Leg . | . . . Wheel 3 | 2 1 . Hover . | . . . Flight . | . . . Utility 7 | 1 2 4 Device 1 | . . 1 Storage 3 | 1 1 1 Processor 1 | . 1 . Hackware . | . . . Protection 2 | . . 2 Artifact . | . . . Weapon 9 | 2 3 4 Energy Gun . | . . . Energy Cannon . | . . . Ballistic Gun 8 | 2 3 3 Ballistic Cannon . | . . . Launcher 1 | . . 1 Special Weapon . | . . . Impact Weapon . | . . . Slashing Weapon . | . . . Piercing Weapon . | . . . Special Melee Weapon . | . . . Unidentified Prototypes . | . . . Parts Lost 7 | . 2 5 Power . | . . . Propulsion 4 | . 2 2 Utility 1 | . . 1 Weapon 2 | . . 2 Highest Loss Streak 3 | . 1 3 To Critical Strikes . | . . . Average Slot Usage (%) 91 | . 97 79 Engine 11 | . 14 6 Core 1 | . . 5 Treads 10 | . 9 11 Wheel 15 | . 17 11 Device 1 | . . 5 Storage 16 | . 24 1 Processor 1 | . 1 . Protection 3 | . . 9 Ballistic Gun 27 | . 28 25 Naked Turns . | . . . Heaviest Build 42 | 13 34 42 Greatest Support 40 | 26 40 16 Greatest Overweight (x) 12 | . 3 12 Average Overweight (x) 1 | . . 1 Largest Inventory Capacity 15 | 8 15 15 Average Capacity 11 | 7 14 6 Most Carried 15 | 6 15 15 Average Carried 8 | 3 10 4 Final Capacity 15 | 8 15 15 Final Carried 15 | 6 15 6 Class Distribution -------------------- 83% | Mutant 7% | Subdweller-Mutant 7% | Tank Dominant Class ---------------- Mutant | -10/Materials Mutant | -10/Subcaves Resources | -11 -10 -10 ----------- Run | Jun Mat Sub Matter Collected 717 | 193 289 235 Remotely . | . . . Salvage Created 537 | . 379 158 Parts 36 | . 30 6 Haulers Intercepted 2 | . 2 . Recyclers Shooed 1 | . 1 . Parts Field Recycled . | . . . Retrieved Matter . | . . . Parts Self-Destructed 6 | . . 6 Prevented . | . . . Kills | -11 -10 -10 ------- Run | Jun Mat Sub Combat Hostiles Destroyed 21 | . 12 9 Guns 14 | . 12 2 AOE 7 | . . 7 Classes Destroyed 6 | . 4 2 Hauler 2 | . 2 . Watcher 2 | . 2 . Swarmer 9 | . 9 . Grunt 3 | . 3 . Artisan 1 | . . 1 Subdweller 9 | . . 9 Best Kill Streak 7 | . 5 7 Combat Bots Only 7 | . 3 7 Max Kills in Single Turn 2 | . 2 2 Gunslinging 1 | . . 1 Exploded 2 | . . 2 Melee . | . . . Uniques/NPCs Destroyed . | . . . Combat | -11 -10 -10 -------- Run | Jun Mat Sub Damage Taken 1472 | . 404 1068 Core 250 | . 97 153 Absorbed by Shields . | . . . Core Remaining (%) 100 | 100 . . Volleys Fired 77 | . 57 20 Largest 3 | . 2 3 Hottest 69 | . 40 69 Shots Fired 147 | . 113 34 Gun 141 | . 113 28 Cannon . | . . . Launcher 6 | . . 6 Special . | . . . Kinetic 147 | . 113 34 Thermal . | . . . Explosive . | . . . Electromagnetic . | . . . Robot Hit Streak 8 | . 8 7 Robot Miss Streak 4 | . 4 3 Penetration Max . | . . . Secondary Targets 2 | . 1 1 Max Gunslinging Chain 1 | . 1 1 Shots Hit Robots 88 | . 64 24 Core Hits 47 | . 23 24 Critical Kills . | . . . Critical Parts Destroyed . | . . . Critical Strikes . | . . . Melee Attacks . | . . . Impact . | . . . Slashing . | . . . Piercing . | . . . Sneak Attacks . | . . . Combat Hostiles . | . . . Follow-up Attacks . | . . . Damage Inflicted 2633 | . 800 1833 Guns 1198 | . 800 398 Cannons . | . . . Explosions 1435 | . . 1435 Melee . | . . . Ramming . | . . . Kinetic 2633 | . 800 1833 Thermal . | . . . Explosive . | . . . Electromagnetic . | . . . Impact . | . . . Slashing . | . . . Piercing . | . . . Highest Corruption 4 | . 4 4 Average Corruption 3 | . 3 4 Corruption Purged . | . . . Corruption Blocked . | . . . Effects 17 | . 6 11 Message Errors 3 | . . 3 Matter Fused 5 | . 2 3 Energy Discharges 4 | . 1 3 Data Loss (minor) 1 | . 1 . Misfires 2 | . . 2 Alerts 1 | . 1 . Weapon Failures 1 | . 1 . Overload Shots . | . . . Overflow Damage 6 | . . 6 Projectiles . | . . . Explosions 6 | . . 6 Melee . | . . . Knockbacks . | . . . Impact . | . . . Kinetic . | . . . Secondary . | . . . Self-Inflicted Damage 115 | . . 115 Shots 6 | . . 6 Rammed . | . . . Targets Rammed . | . . . Kicked . | . . . Crushed . | . . . Highest Temperature . | . . . Average Temperature . | . . . Received Heat Transfer 333 | . 102 231 Siege Activations . | . . . Robots Corrupted . | . . . Combat Hostiles . | . . . Parts Fried . | . . . Impact Corruptions . | . . . Robots Melted . | . . . Combat Hostiles . | . . . Parts Melted . | . . . Heat Transferred . | . . . Parts Sabotaged . | . . . Parts Stolen . | . . . Parts Stripped . | . . . Power Chain Reactions . | . . . Missiles Intercepted . | . . . Alert | -11 -10 -10 ------- Run | Jun Mat Sub Peak Influence 254 | . 254 . Initial . | . . . Average 93 | . 100 . Maximum Alert Level 1 | . 1 . Low Security (%) 94 | 100 94 . Level 1 5 | . 5 . Level 2 . | . . . Level 3 . | . . . Level 4 . | . . . Level 5 . | . . . High Security . | . . . Max Security . | . . . Squads Dispatched 2 | . 2 . Investigation . | . . . Extermination . | . . . Reinforcement 2 | . 2 . Assault . | . . . Garrison . | . . . Intercept . | . . . Searches Triggered . | . . . Construction Impeded . | . . . Haulers Reinforced . | . . . Active Scanning Responses . | . . . Cargo Convoy Interrupts . | . . . Stealth | -11 -10 -10 --------- Run | Jun Mat Sub Distress Signals 1 | . 1 . Communications Jammed . | . . . Distress Signals . | . . . Times Spotted 31 | . 18 13 Peak Tracking Total 7 | . 3 7 Tactical Retreats . | . . . Traps | -11 -10 -10 ------- Run | Jun Mat Sub Traps Triggered 4 | . 4 . Indirectly . | . . . Trap Hack Attempts . | . . . Triggered . | . . . Disarmed . | . . . Reprogrammed . | . . . Reused . | . . . Traps Extracted . | . . . Installed . | . . . Triggered . | . . . Machines | -11 -10 -10 ---------- Run | Jun Mat Sub Machines Disabled 1 | . . 1 Max in Single Turn 1 | . . 1 Machines Repaired . | . . . Machines Sabotaged . | . . . Overloaded Fab Kills . | . . . Hacking | -11 -10 -10 --------- Run | Jun Mat Sub Machines Accessed 1 | . . 1 Terminals . | . . . Fabricators . | . . . Repair Stations . | . . . Recycling Units . | . . . Scanalyzers . | . . . Garrison Access . | . . . Total Hacks 9 | . . 9 Successful 9 | . . 9 Failed . | . . . Catastrophic . | . . . Database Lockouts . | . . . Manual . | . . . Terminals . | . . . Fabricators . | . . . Repair Stations . | . . . Recycling Units . | . . . Scanalyzers . | . . . Garrison Access . | . . . Terminal Hacks 9 | . . 9 Record 8 | . . 8 Derelict Proto ID Bank 1 | . . 1 Fabricator Hacks . | . . . Repair Station Hacks . | . . . Recycling Unit Hacks . | . . . Scanalyzer . | . . . Garrison Access Hacks . | . . . Unauthorized Hacks . | . . . Terminals . | . . . Fabricators . | . . . Repair Stations . | . . . Recycling Units . | . . . Scanalyzers . | . . . Garrison Access . | . . . Data Cores Recovered . | . . . Used . | . . . Hacking Detections . | . . . Full Trace Events . | . . . Feedback Events . | . . . Feedback Blocked . | . . . Robot Schematics Acquired . | . . . Robots Built . | . . . Authchips . | . . . Time . | . . . Total Robot Build Rating . | . . . Part Schematics Acquired . | . . . Parts Built . | . . . Authchips . | . . . Time . | . . . Total Part Build Rating . | . . . Parts Repaired . | . . . Time . | . . . Parts Recycled . | . . . Recycled Matter . | . . . Retrieved Matter . | . . . Retrieved Components . | . . . Parts Scanalyzed . | . . . Part Schematics Acquired . | . . . Parts Damaged . | . . . Bothacking | -11 -10 -10 ------------ Run | Jun Mat Sub Used RIF Installer . | . . . Robots Hacked . | . . . Non-combat . | . . . Combat . | . . . Robot Hacks Applied . | . . . Relay Couplers Released . | . . . Fabnet Peak Effective % . | . . . Robots Rewired . | . . . Allies Hacked . | . . . Hacks Repelled . | . . . Allies | -11 -10 -10 -------- Run | Jun Mat Sub Total Allies . | . . . Largest Group . | . . . Highest-Rated Group . | . . . Highest-Rated Ally . | . . . Total Orders . | . . . Ally Attacks . | . . . Total Damage . | . . . Kills . | . . . Allies Corrupted . | . . . Allies Melted . | . . . Intel | -11 -10 -10 ------- Run | Jun Mat Sub Robot Analysis Total . | . . . Derelict Logs Recovered . | . . . Drone Launches . | . . . Drone Recoveries . | . . . Exploration | -11 -10 -10 ------------- Run | Jun Mat Sub Turns Passed 1259 | 59 798 402 Spaces Moved 723 | 50 409 264 Core 3 | 2 . 1 Treads 69 | . 69 . Legs . | . . . Wheels 651 | 48 340 263 Hover . | . . . Flight . | . . . Fastest Speed 50 | 50 90 115 Average Speed 118 | 88 118 123 Slowest Speed 650 | 90 240 650 Overloaded Moves . | . . . Propulsion Burnouts . | . . . Robots Hopped . | . . . Cave-ins Triggered . | . . . Exploration Rate (%) 29 | 3 66 18 Regions Visited 2 Branch Regions 1 Pre-discovered Areas . | . . . Known Exits Taken . | . . . Unknown Exits Taken 2 | 1 1 . Scrap Searched 4 | . . 4 Spaces Dug . | . . . Terrain Destroyed 29 | . . 29 Melee . | . . . Projectile . | . . . AOE 29 | . . 29 Terrain Rammed . | . . . Walls Destroyed . | . . . Machines Disabled . | . . . Actions | -11 -10 -10 --------- Run | Jun Mat Sub Total 991 | 61 612 318 Wait 114 | . 112 2 Move 721 | 49 408 264 Hop . | . . . Pick Up 30 | 6 15 9 Fast Attach 16 | 6 4 6 Attach 5 | . 3 2 Detach 2 | . 1 1 Swap 4 | . 3 1 Drop 19 | . 9 10 Fire 77 | . 57 20 Melee . | . . . Ram . | . . . Kick . | . . . Crush . | . . . Escape Stasis . | . . . Rewire . | . . . Trap . | . . . Miscellaneous 3 | . . 3 Route ------- -11/Junkyard -10/Materials (discovered 4 exits: [*Mat x2] / [*Min] / *Sub) -10/Subcaves History --------- Turn | Location | Event 27 | -11/Junkyard | Discovered new exit (range 15) 60 | -11/Junkyard | Entered Materials 156 | -10/Materials | Discovered new exit (range 11) 318 | -10/Materials | Build established: Mutant 512 | -10/Materials | Discovered new exit (range 7) 718 | -10/Materials | Discovered new exit (range 15) 830 | -10/Materials | Discovered new exit (range 5) 858 | -10/Materials | Entered Subcaves 1014 | -10/Subcaves | Visited 4L-MR0's lab 1031 | -10/Subcaves | Found Meta Core 1032 | -10/Subcaves | Attached Meta Core, gained temporary slots: Propulsion, Utility, Weapon 1173 | -10/Subcaves | Ambushed by swarm of Subdwellers 1185 | -10/Subcaves | Core integrity fell below 50% 1198 | -10/Subcaves | Core integrity fell below 20% 1219 | -10/Subcaves | Destroyed 7 combat bots 1238 | -10/Subcaves | Ambushed by angry Subdweller bent on revenge 1260 | -10/Subcaves | Destroyed by S-10 Pest with Light Assault Rifle Last Messages --------------- 01191_ Scrap Shield destroyed. 01192_ 3H-UWH(R) affixes Scrap Shield Fragment to Scrap Shield. 01192_ HN-W33(R) destroyed. 01194_ System corrupted: Energy discharge (-66). 01194_ BV-A6R(R) destroyed. 01196_ Destroyed Scrap Shield. 01196_ UP-GWS(R) destroyed. 01198_ U0-HEQ(R) destroyed. 01198_ 3H-UWH(R) destroyed. 01203_ Acquired Lrg. Matter Pod. 01207_ Acquired Lrg. Storage Unit. 01211_ Acquired Assault Rifle. 01218_ System corrupted: Matter fused (-5). 01238_ OV-4O2(R) angrily emerges from the Twisted Machinery. 01238_ OV-4O2(R): "MADSUB!" 01257_ Lgt. Treads destroyed. 01259_ Shotgun destroyed. 01259_ Com. Wheel destroyed. 01260_ JRB54S= 7CP UH9X0J:1SRHNAX8X&QQIFWP8%12 01260_ Temporary Weapon slot lost. Map ----- +----------------------------------------------------+ | ?????????## % ##### ?????????????????????? | | #???######## #?????????????????????? | | #???## % ???????????????????????? | | #??## #?????????????????????????????? | | ##?# #?????????????????????????????????? | | ### ### ##?????????????????????????????????? | | ## ##??# ###????????????????????????????????? | | ##??# #????????????????????????????????? | | #### ##????????????????????????????????? | | ## # #?????????????????????????????????? | | ## #?????####????????????????????????? | | #### ####### ##???????????????????????? | | #?## # # ##??????????????????????? | | ?## #??????????????????????? | | ?#" #??????????????????????? | | ?# ## ## ##??????????????????????? | | ## ##### ##???????????????????????? | | #"" #??## R ##????????????????????????? | | # "" #?## ###???????????????????????? | | "" ## ####### ##??????????????????????? | | ""##"""#????# #??????????????????????? | | ### ####""#????## ##??????????????????????? | | ??####??#" #?????## ##??????????????????????? | | ????????"" ??????## ##### # #???????????? | | ????????""""#??????## ss #???????????? | | ??????? ""#???????# @ s #???????????? | | ??????? ???????## ### #????????? | | ??????? ## ????????## ### #????? #????????? | | ?????????# ##????????###?? #???????? #????????? | | ?????????# #??????????????# ##??????????????????? | | ?????????## #???????????????##???????????????????? | | ??????????? ?????????????????????????????????????? | | ?????????????????????????????????????????????????? | | ?????????????????????????????????????????????????? | | ?????????????????????????????????????????????????? | | ?????????????????????????????????????????????????? | | ?????????????????????????????????????????????????? | | ?????????????????????????????????????????????????? | | ?????????????????????????????????????????????????? | | ?????????????????????????????????????????????????? | | ?????????????????????????????????????????????????? | | ?????????????????????????????????????????????????? | | ?????????????????????????????????????????????????? | | ?????????????????????????????????????????????????? | | ?????????????????????????????????????????????????? | | ?????????????????????????????????????????????????? | | ?????????????????????????????????????????????????? | | ?????????????????????????????????????????????????? | | ?????????????????????????????????????????????????? | | ?????????????????????????????????????????????????? | +----------------------------------------------------+ Best States ------------- Heat Dissipation 25 Energy Generation 17 Energy Capacity 250 Matter Stores 233 Matter Capacity 300 Sight Range 21 Terrain Scan Density 10 Armor Coverage 800 Evasion (%) 42 Targeting Accuracy 6 Recoil Reduction 2 Item Schematics ----------------- None Robot Schematics ------------------ None Fabricated ------------ Nothing Alien Tech Used ----------------- None Achievements -------------- None Challenges ------------ None Game ------ Seed NeutrinoWeldingNeutralizer Manual? 0 Play Time 00:19:11 Cumulative 130.2 hours Start 2023.08.01 @ 01:53:50 End 2023.08.01 @ 02:12:46 Sessions 1 Manual Loads 0 Difficulty Rogue Special Mode None Game No. 94 Rogue 94 Adventurer 0 Explorer 0 Win Type - Total 3 Types 2/0/1/0/0/0/0/0/0 Lore% 43 Gallery% 70 Achievement% 52 Wizard Run 0 Options --------- ASCII 0 Keyboard 1 Movement Vi Keybinds 1 Fullscreen 1 Font 18/SmallcapsGlow Map View 76x50 Tactical HUD 1 Map Filters NONE Filters NONE Steam 0 RUN: 3bb81a33-e19e-42eb-bb90-568f85f91896